bitfinex/quotes_SOLUSD_20260306
["timestamp","ask_amount","ask_price","bid_price","bid_amount"]
[1772820083532,47.32185584,84.528,84.429,1.31529137]
[1772820083533,11.83473969,84.497,84.429,1.31529137]
[1772820083750,41.42158892,84.497,84.437,1.31529137]
[1772820084157,41.42158892,84.497,84.447,1.31529137]
[1772820084361,9.4621325,84.49,84.447,1.31529137]
[1772820084578,11.83319922,84.508,84.447,1.31529137]
[1772820084853,41.41619727,84.508,84.457,1.31529137]
[1772820085043,41.41619727,84.508,84.418,0.14216157]
[1772820085044,11.83445957,84.499,84.454,13.1560272]
[1772820085241,9.4621325,84.48,84.447,1.31529137]
[1772820085548,1.13607261,84.479,84.438,1.31529137]
[1772820086354,1.13607261,84.479,84.437,11.84311168]
[1772820086355,1.07429827,84.469,84.429,1.31529137]
[1772820087044,1.01323347,84.457,84.422,11.8452536]
[1772820087248,1.01323347,84.457,84.423,1.31529137]
[1772820087763,11.83963974,84.463,84.423,1.31529137]
[1772820087939,1.01323347,84.462,84.427,1.31529137]
[1772820088139,11.83963974,84.463,84.427,1.31529137]
[1772820088350,0.95287005,84.459,84.427,1.31529137]
[1772820088533,11.83963974,84.463,84.423,1.31529137]
[1772820088854,12.7918225,84.467,84.423,1.31529137]
[1772820089038,0.91905342,84.466,84.425,1.31529137]
[1772820089938,0.91905342,84.483,84.429,1.31529137]
[1772820090253,0.91905342,84.483,84.447,1.31529137]
[1772820090254,11.83684098,84.482,84.447,1.31529137]
[1772820090851,12.72148548,84.489,84.447,1.31529137]
[1772820091055,0.85258094,84.496,84.449,1.31529137]
[1772820091674,0.81991622,84.489,84.449,1.31529137]
[1772820091885,0.81991622,84.489,84.449,1.14859941]
[1772820092168,41.42158892,84.497,84.449,1.14859941]
[1772820092169,0.78762669,84.496,84.449,1.14859941]
[1772820092339,0.78762669,84.496,84.451,0.14216157]
[1772820092540,0.78762669,84.496,84.457,1.14859941]
[1772820092948,0.75570804,84.489,84.448,12.99020607]
[1772820093159,0.75570804,84.487,84.448,1.14859941]
[1772820093344,9.4621325,84.47,84.44,1.14859941]
[1772820093539,0.75570804,84.469,84.44,1.14859941]
[1772820093760,0.75570804,84.469,84.434,11.84346311]
[1772820093966,1.18860666,84.459,84.422,11.8452536]
[1772820094470,1.18860666,84.469,84.422,41.45838761]
[1772820094648,1.18860666,84.469,84.423,0.42648471]
[1772820095458,1.18860666,84.469,84.425,0.42648471]
[1772820095968,1.18860666,84.469,84.428,1.14859941]
[1772820096657,1.18860666,84.477,84.428,1.14859941]
[1772820096854,1.18860666,84.485,84.431,0.14216157]
[1772820097166,1.18860666,84.508,84.448,1.14859941]
[1772820097365,1.18860666,84.508,84.458,1.43292255]
[1772820097568,1.18860666,84.508,84.47,1.14859941]
[1772820097772,1.18860666,84.508,84.478,1.14859941]
[1772820097967,1.18860666,84.517,84.478,1.14859941]
[1772820098175,11.83067931,84.526,84.478,1.14859941]
[1772820098361,11.82512522,84.566,84.486,1.14859941]
[1772820098567,9.4621325,84.56,84.498,1.14859941]
[1772820098885,9.4621325,84.56,84.505,0.14216157]
[1772820099054,9.4621325,84.56,84.508,1.14859941]
[1772820099252,9.4621325,84.55,84.508,1.14859941]
[1772820099484,41.64666731,84.562,84.499,0.14216157]
[1772820099485,0.2568719,84.562,84.512,1.14859941]
[1772820099653,0.2568719,84.562,84.513,1.14859941]
[1772820099859,0.2568719,84.562,84.517,1.14859941]
[1772820100253,0.56229607,84.561,84.517,1.14859941]
[1772820100486,0.56229607,84.559,84.517,1.14859941]
[1772820100863,0.56229607,84.559,84.514,0.28432314]
[1772820100864,9.4621325,84.6,84.524,1.14859941]
[1772820101072,9.4621325,84.6,84.514,0.28432314]
[1772820101073,9.4621325,84.59,84.538,1.14859941]
[1772820101379,0.56267581,84.579,84.538,11.82899997]
[1772820101557,9.4621325,84.56,84.538,11.82899997]
[1772820101870,0.56267581,84.569,84.538,41.40149991]
[1772820102074,0.56267581,84.569,84.538,42.55009932]
[1772820102464,9.4621325,84.59,84.539,1.14859941]
[1772820102662,9.4621325,84.6,84.543,1.14859941]
[1772820102881,9.4621325,84.6,84.542,0.42648471]
[1772820102882,9.4621325,84.6,84.553,1.14859941]
[1772820103086,9.4621325,84.6,84.557,1.14859941]
[1772820103260,9.4621325,84.59,84.557,1.14859941]
[1772820103591,11.81897342,84.61,84.504,47.33467181]
[1772820103592,9.4621325,84.58,84.558,11.82620213]
[1772820103872,9.4621325,84.57,84.536,1.14859941]
[1772820104076,9.4621325,84.58,84.536,1.14859941]
[1772820104272,9.4621325,84.57,84.536,1.14859941]
[1772820104576,9.4621325,84.58,84.538,1.14859941]
[1772820105283,3.69383402,84.626,84.54,1.14859941]
[1772820105489,9.4621325,84.59,84.54,1.14859941]
[1772820105788,9.4621325,84.59,84.542,1.14859941]
[1772820106194,11.81991182,84.603,84.542,1.14859941]
[1772820106489,10.98211076,84.59,84.542,1.14859941]
[1772820106985,41.36969137,84.603,84.542,1.14859941]
[1772820107209,10.98211076,84.57,84.542,1.14859941]
[1772820107675,11.82243078,84.585,84.543,41.39905136]
[1772820107989,10.98211076,84.56,84.524,1.14859941]
[1772820108169,0.70511638,84.552,84.525,1.14859941]
[1772820108370,10.98211076,84.57,84.525,1.14859941]
[1772820108565,10.98211076,84.58,84.527,1.14859941]
[1772820108765,10.98211076,84.59,84.53,0.14216157]
[1772820108970,29.54866239,84.607,84.531,1.14859941]
[1772820109164,11.81865456,84.612,84.526,0.28432314]
[1772820109165,10.98211076,84.6,84.537,1.14859941]
[1772820109388,10.98211076,84.6,84.546,0.14216157]
[1772820109686,10.98211076,84.6,84.553,1.14859941]
[1772820110063,10.98211076,84.61,84.555,1.14859941]
[1772820110269,10.98211076,84.62,84.561,1.14859941]
[1772820110476,22.79972029,84.62,84.561,1.14859941]
[1772820110793,10.98211076,84.62,84.564,0.14216157]
[1772820110992,10.98211076,84.61,84.571,1.14859941]
[1772820111199,10.98211076,84.62,84.571,1.14859941]
[1772820111501,22.79831452,84.63,84.571,1.14859941]
[1772820111879,22.79831452,84.63,84.555,3.69383402]
[1772820111880,10.98211076,84.63,84.578,1.14859941]
[1772820112195,10.98211076,84.63,84.58,1.14859941]
[1772820112976,10.98211076,84.64,84.58,1.14859941]
[1772820113583,11.81376776,84.647,84.58,1.14859941]
[1772820113774,10.98211076,84.64,84.59,1.14859941]
[1772820114182,10.98211076,84.65,84.59,1.14859941]
[1772820115188,10.98211076,84.64,84.59,1.14859941]
[1772820115495,10.98211076,84.65,84.59,1.14859941]
[1772820115888,10.98211076,84.65,84.587,41.37751663]
[1772820115889,11.81348864,84.649,84.593,0.14216157]
[1772820116087,22.96575588,84.654,84.599,0.14216157]
[1772820116298,52.4977331,84.654,84.592,1.08211429]
[1772820116496,10.98211076,84.63,84.592,1.08211429]
[1772820116880,52.4977331,84.654,84.592,1.08211429]
[1772820117205,10.98211076,84.63,84.592,1.08211429]
[1772820117592,10.98211076,84.64,84.592,1.08211429]
[1772820117788,10.98211076,84.65,84.592,1.08211429]
[1772820118101,10.98211076,84.64,84.594,1.08211429]
[1772820118487,11.81348864,84.649,84.594,1.08211429]
[1772820118684,10.98211076,84.64,84.594,1.08211429]
[1772820120381,10.98211076,84.65,84.596,1.08211429]
[1772820120776,10.98211076,84.64,84.596,1.08211429]
[1772820120975,10.98211076,84.63,84.596,1.08211429]
[1772820121181,10.98211076,84.63,84.557,3.69383402]
[1772820121182,88.59697824,84.653,84.595,11.82102961]
[1772820121380,88.59697824,84.653,84.595,12.9031439]
[1772820121381,10.98211076,84.63,84.595,12.9031439]
[1772820121585,10.98211076,84.63,84.59,11.82164179]
[1772820121799,10.98211076,84.62,84.581,12.90510053]
[1772820121992,10.98211076,84.62,84.582,1.08211429]
[1772820122310,10.98211076,84.61,84.573,1.08211429]
[1772820122604,10.98211076,84.61,84.573,12.9062189]
[1772820122805,10.98211076,84.61,84.574,1.08211429]
[1772820123307,11.81767688,84.619,84.574,1.08211429]
[1772820123500,41.36186908,84.619,84.574,1.08211429]
[1772820124284,11.81907362,84.609,84.575,11.823825]
[1772820124480,11.81907362,84.609,84.576,1.08211429]
[1772820125197,10.98211076,84.61,84.576,1.08211429]
[1772820125384,11.81855366,84.613,84.576,1.08211429]
[1772820125698,10.98211076,84.61,84.576,1.08211429]
[1772820125887,11.81801186,84.617,84.576,1.08211429]
[1772820126697,10.98211076,84.61,84.578,1.08211429]
[1772820127301,10.98211076,84.6,84.566,1.08211429]
[1772820127503,10.98211076,84.61,84.566,1.08211429]
[1772820128088,10.98211076,84.6,84.566,1.08211429]
[1772820128519,10.98211076,84.59,84.566,1.08211429]
[1772820128696,10.98211076,84.59,84.559,11.82596617]
[1772820129310,10.98211076,84.59,84.558,1.08211429]
[1772820130324,0.42648471,84.618,84.56,1.08211429]
[1772820130504,47.25392097,84.65,84.56,1.08211429]
[1772820130505,10.98211076,84.64,84.563,106.42952589]
[1772820130809,10.98211076,84.64,84.571,1.08211429]
[1772820130992,10.98211076,84.64,84.579,1.08211429]
[1772820131197,10.98211076,84.64,84.581,1.08211429]
[1772820131807,10.98211076,84.63,84.581,1.08211429]
[1772820132120,10.98211076,84.62,84.581,1.08211429]
[1772820132602,10.98211076,84.61,84.583,1.08211429]
[1772820132795,10.98211076,84.62,84.583,1.08211429]
[1772820134617,11.81767688,84.619,84.584,11.82256691]
[1772820134818,11.81767688,84.619,84.585,1.08211429]
[1772820135619,10.98211076,84.64,84.585,1.08211429]
[1772820135803,10.98211076,84.63,84.585,1.08211429]
[1772820136004,10.98211076,84.62,84.585,1.08211429]
[1772820136719,11.81767688,84.619,84.587,1.08211429]
[1772820137822,41.36186908,84.619,84.587,1.08211429]
[1772820138919,41.36186908,84.619,84.556,0.14216157]
[1772820138920,10.98211076,84.61,84.556,0.14216157]
[1772820139114,10.98211076,84.61,84.561,1.08211429]
[1772820140322,41.36186908,84.619,84.561,1.08211429]
[1772820140701,10.98211076,84.61,84.561,1.08211429]
[1772820142927,11.81907362,84.609,84.563,1.08211429]
[1772820143921,10.98211076,84.61,84.563,1.08211429]
[1772820144119,10.98211076,84.63,84.569,1.08211429]
[1772820144421,10.98211076,84.63,84.571,1.08211429]
[1772820145006,41.35698164,84.629,84.573,1.08211429]
[1772820145421,10.98211076,84.63,84.577,1.08211429]
[1772820145616,10.98211076,84.63,84.581,1.08211429]
[1772820146220,10.98211076,84.64,84.581,1.08211429]
[1772820147131,10.98211076,84.63,84.583,1.08211429]
[1772820149522,11.81628047,84.629,84.584,41.37898419]
[1772820149723,10.98211076,84.62,84.585,1.08211429]
[1772820150835,41.35698164,84.629,84.585,1.08211429]
[1772820152231,10.98211076,84.62,84.587,1.08211429]
[1772820152626,106.5804725,84.653,84.587,1.08211429]
[1772820152832,10.98211076,84.64,84.587,1.08211429]
[1772820153015,10.98211076,84.65,84.591,1.08211429]
[1772820153819,41.34525651,84.653,84.591,1.08211429]
[1772820154038,10.98211076,84.65,84.591,1.08211429]
[1772820154250,11.81293043,84.653,84.6,1.08211429]
[1772820156530,11.15284549,84.654,84.604,1.08211429]
[1772820156729,11.15284549,84.654,84.603,0.42648471]
[1772820156730,11.15284549,84.654,84.61,1.08211429]
[1772820157316,22.96571173,84.654,84.61,1.08211429]
[1772820157621,10.98211076,84.65,84.61,1.08211429]
[1772820157843,10.98211076,84.64,84.61,1.08211429]
[1772820158144,10.98211076,84.65,84.61,1.08211429]
[1772820158739,41.34721024,84.649,84.611,11.81879424]
[1772820158944,10.98211076,84.64,84.612,1.08211429]
[1772820159447,10.98211076,84.63,84.593,1.08211429]
[1772820159644,10.98211076,84.64,84.593,1.08211429]
[1772820160841,11.81488439,84.639,84.595,1.08211429]
[1772820161239,11.81383298,84.647,84.599,1.08211429]
[1772820161547,11.15284549,84.654,84.607,1.08211429]
[1772820161759,11.15284549,84.654,84.611,1.08211429]
[1772820162331,11.81293043,84.653,84.611,1.08211429]
[1772820162655,10.98211076,84.65,84.611,1.08211429]
[1772820162947,11.81293043,84.653,84.613,1.08211429]
[1772820165576,41.34525651,84.653,84.615,1.08211429]
[1772820165741,10.98211076,84.65,84.615,1.08211429]
[1772820166138,10.98211076,84.64,84.61,12.90094514]
[1772820166451,10.96946061,84.64,84.61,1.08211429]
[1772820166839,10.96946061,84.62,84.597,11.82075014]
[1772820167142,10.96946061,84.62,84.562,47.30219464]
[1772820167143,10.96946061,84.62,84.596,1.08211429]
[1772820167334,10.96946061,84.63,84.596,1.08211429]
[1772820167734,11.81628047,84.629,84.598,1.08211429]
[1772820169756,11.81628047,84.629,84.6,1.08211429]
[1772820171468,10.96946061,84.62,84.592,1.08211429]
[1772820172066,41.35698164,84.629,84.594,1.08211429]
[1772820172067,29.54070117,84.629,84.594,1.08211429]
[1772820172262,10.96946061,84.63,84.594,1.08211429]
[1772820172435,11.81293043,84.653,84.594,1.08211429]
[1772820172634,11.81293043,84.653,84.597,0.14216157]
[1772820172833,11.81293043,84.653,84.6,1.08211429]
[1772820173968,10.96946061,84.64,84.608,1.08211429]
[1772820178564,10.96946061,84.65,84.61,1.08211429]
[1772820179270,41.34525651,84.653,84.573,1.08211429]
[1772820179271,10.96946061,84.63,84.573,1.08211429]
[1772820179454,10.96946061,84.62,84.575,1.08211429]
[1772820180169,10.96946061,84.62,84.58,0.14216157]
[1772820180466,10.96946061,84.61,84.582,1.08211429]
[1772820180670,47.2577557,84.643,84.582,1.08211429]
[1772820180671,11.81849613,84.614,84.582,1.08211429]
[1772820181769,10.96946061,84.61,84.582,1.08211429]
[1772820182267,10.96946061,84.61,84.578,1.08211429]
[1772820182648,11.81907362,84.609,84.578,1.08211429]
[1772820182845,11.81907362,84.609,84.58,1.08211429]
[1772820183967,10.96946061,84.6,84.58,1.08211429]
[1772820185071,11.82047069,84.599,84.58,1.08211429]
[1772820185373,11.82047069,84.599,84.538,4.87673401]
[1772820185374,10.96946061,84.59,84.56,1.08211429]
[1772820185676,10.96946061,84.58,84.56,1.08211429]
[1772820185970,10.96946061,84.57,84.544,1.08211429]
[1772820186366,41.37164741,84.599,84.544,1.08211429]
[1772820186367,10.96946061,84.58,84.544,1.08211429]
[1772820186561,10.96946061,84.57,84.544,1.08211429]
[1772820187282,11.82466388,84.569,84.544,1.08211429]
[1772820187950,11.82466388,84.569,84.545,11.82802058]
[1772820188157,11.82369069,84.576,84.546,1.08211429]
[1772820188379,10.96946061,84.59,84.546,1.08211429]
[1772820188770,10.96946061,84.58,84.546,1.08211429]
[1772820189257,11.82200821,84.588,84.548,1.08211429]
[1772820190764,10.96946061,84.58,84.548,1.08211429]
[1772820191073,10.96946061,84.57,84.548,1.08211429]
[1772820192081,22.79411396,84.57,84.548,1.08211429]
[1772820192264,10.96946061,84.56,84.526,1.08211429]
[1772820192461,10.96946061,84.56,84.527,1.08211429]
[1772820193259,11.81893393,84.61,84.528,1.22427586]
[1772820193459,10.96946061,84.58,84.528,1.22427586]
[1772820193865,29.54977955,84.603,84.528,1.22427586]
[1772820193866,10.96946061,84.57,84.528,1.22427586]
[1772820194175,10.96946061,84.57,84.5,1.18343195]
[1772820194176,10.96946061,84.57,84.531,1.08211429]
[1772820194361,11.8234412,84.578,84.531,1.08211429]
[1772820194570,22.79271683,84.58,84.531,1.08211429]
[1772820194772,10.96946061,84.57,84.531,1.08211429]
[1772820194966,11.82325622,84.58,84.531,1.08211429]
[1772820194967,10.96946061,84.56,84.531,1.08211429]
[1772820195971,10.96946061,84.57,84.531,1.08211429]
[1772820196177,10.96946061,84.56,84.533,1.08211429]
[1772820196476,10.96946061,84.55,84.525,1.08211429]
[1772820196662,10.96946061,84.55,84.525,12.91293357]
[1772820196874,10.96946061,84.55,84.526,1.08211429]
[1772820198090,10.96946061,84.55,84.528,1.08211429]
[1772820199784,10.96946061,84.55,84.529,11.83025943]
[1772820199968,11.82746099,84.549,84.53,1.08211429]
[1772820200560,11.82746099,84.549,84.524,12.97353087]
[1772820200561,10.96946061,84.54,84.524,12.97353087]
[1772820202268,10.96946061,84.54,84.525,1.08211429]
[1772820202886,11.82886005,84.539,84.525,1.08211429]
[1772820203084,11.82886005,84.539,84.524,12.97353087]
[1772820203390,10.96946061,84.53,84.524,12.97353087]
[1772820203574,10.96946061,84.53,84.524,1e-08]
[1772820204384,10.96946061,84.54,84.524,1.0821143]
[1772820204888,22.79822942,84.54,84.524,1.0821143]
[1772820205487,22.79822942,84.54,84.524,1e-08]
[1772820206574,29.56526946,84.559,84.524,1e-08]
[1772820206815,10.96946061,84.56,84.524,1e-08]
[1772820207091,41.36675767,84.609,84.524,1e-08]
[1772820207394,41.36675767,84.609,84.541,1.08211429]
[1772820207598,41.36675767,84.609,84.551,1.08211429]
[1772820207968,10.96946061,84.6,84.551,1.08211429]
[1772820208700,11.82047069,84.599,84.553,1.08211429]
[1772820209190,10.96946061,84.59,84.553,1.08211429]
[1772820209373,10.96946061,84.58,84.553,1.08211429]
[1772820210594,11.82466388,84.569,84.545,1.08211429]
[1772820210794,10.96946061,84.56,84.545,1.08211429]
[1772820211002,10.96946061,84.56,84.526,1.08211429]
[1772820212191,41.38632358,84.569,84.526,1.08211429]
[1772820212379,10.96946061,84.56,84.526,1.08211429]
[1772820212881,11.82606227,84.559,84.528,1.08211429]
[1772820213515,11.82606227,84.559,84.527,11.83053935]
[1772820213516,10.96946061,84.55,84.521,11.83127288]
[1772820213679,10.96946061,84.55,84.524,11.83090833]
[1772820214103,41.39121796,84.559,84.525,1.08211429]
[1772820215005,10.96946061,84.55,84.524,1e-08]
[1772820215713,10.96946061,84.54,84.524,1e-08]
[1772820216000,10.96946061,84.53,84.524,1e-08]
[1772820216307,41.39121796,84.559,84.524,1e-08]
[1772820217296,10.96946061,84.55,84.524,1e-08]
[1772820217607,11.82606227,84.559,84.524,1e-08]
[1772820218495,10.96946061,84.55,84.524,1e-08]
[1772820219518,11.82746099,84.549,84.524,1e-08]
[1772820220121,10.96946061,84.56,84.524,1e-08]
[1772820220502,10.96946061,84.57,84.524,1e-08]
[1772820221013,10.96946061,84.55,84.524,1e-08]
[1772820221414,195.07004786,84.585,84.524,1e-08]
[1772820221415,10.96946061,84.56,84.524,1e-08]
[1772820221722,11.82606227,84.559,84.524,1e-08]
[1772820223704,10.96946061,84.55,84.524,1e-08]
[1772820224421,11.82606227,84.559,84.524,1e-08]
[1772820224796,41.39121796,84.559,84.524,1e-08]
[1772820225815,10.96946061,84.55,84.524,1e-08]
[1772820226398,10.96946061,84.55,84.524,11.83095926]
[1772820226598,10.99227316,84.55,84.524,12.91307355]
[1772820226828,10.99227316,84.55,84.525,1.08211429]
[1772820228119,11.82746099,84.549,84.526,12.9127936]
[1772820228303,11.82746099,84.549,84.527,1.08211429]
[1772820229521,10.99227316,84.54,84.524,1e-08]
[1772820229722,41.39611348,84.549,84.524,1e-08]
[1772820229916,10.99227316,84.54,84.524,1e-08]
[1772820230222,10.99227316,84.53,84.524,1e-08]
[1772820230726,10.99227316,84.54,84.524,1e-08]
[1772820230921,11.82746099,84.549,84.524,1e-08]
[1772820231125,10.99227316,84.54,84.524,1e-08]
[1772820232129,10.99227316,84.54,84.51,0.2]
[1772820232130,10.99227316,84.53,84.51,0.2]
[1772820232422,11.82886005,84.539,84.51,0.2]
[1772820233009,11.82886005,84.539,84.511,11.83277916]
[1772820233211,11.82797436,84.546,84.511,11.83277916]
[1772820233434,0.15997854,84.539,84.511,11.83277916]
[1772820233929,0.15997854,84.556,84.511,41.41472707]
[1772820234235,0.15997854,84.556,84.512,0.6396017]
[1772820234441,10.99227316,84.54,84.512,0.6396017]
[1772820234618,0.15719786,84.549,84.512,0.6396017]
[1772820235514,10.99227316,84.55,84.512,0.6396017]
[1772820236844,11.976507,84.549,84.514,0.57471425]
[1772820237218,41.54515949,84.549,84.514,0.57471425]
[1772820237829,41.39611348,84.549,84.514,0.57471425]
[1772820238543,11.82746099,84.549,84.514,0.57471425]
[1772820239322,41.39611348,84.549,84.515,11.83221913]
[1772820239527,10.99227316,84.54,84.516,0.57471425]
[1772820239921,0.14598744,84.548,84.516,0.57471425]
[1772820240924,11.82746099,84.549,84.516,0.57471425]
[1772820241126,10.99227316,84.56,84.516,0.57471425]
[1772820241534,10.99227316,84.56,84.51,0.2]
[1772820241535,11.97205935,84.557,84.518,0.57471425]
[1772820241920,11.82646617,84.557,84.518,0.57471425]
[1772820242122,10.99227316,84.55,84.518,0.57471425]
[1772820242342,11.82646617,84.557,84.518,0.57471425]
[1772820244243,10.99227316,84.55,84.52,0.59650843]
[1772820244748,10.99227316,84.54,84.515,12.42865906]
[1772820244952,10.99227316,84.55,84.516,0.59650843]
[1772820245129,11.13691965,84.55,84.516,0.59650843]
[1772820245319,0.14464649,84.551,84.516,0.59650843]
[1772820245523,11.82646617,84.557,84.516,0.59650843]
[1772820246138,10.99227316,84.55,84.518,0.59650843]
[1772820246446,11.82646617,84.557,84.518,0.59650843]
[1772820247547,11.97074903,84.557,84.518,0.59650843]
[1772820247848,10.99227316,84.55,84.518,0.59650843]
[1772820248170,0.14410417,84.548,84.518,0.59650843]
[1772820248342,10.99227316,84.54,84.518,0.59650843]
[1772820248543,4.3973317,84.54,84.519,11.83165915]
[1772820248741,0.14410417,84.548,84.519,12.42816758]
[1772820249361,4.3973317,84.54,84.519,12.42816758]
[1772820250363,4.3973317,84.54,84.51,0.2]
[1772820250364,41.40101018,84.539,84.51,1e-08]
[1772820250543,4.3973317,84.52,84.495,0.59650843]
[1772820250744,4.3973317,84.51,84.495,0.59650843]
[1772820251144,4.3973317,84.52,84.495,0.59650843]
[1772820251346,4.3973317,84.53,84.497,0.61293362]
[1772820251545,41.40101018,84.539,84.497,0.61293362]
[1772820252148,41.40101018,84.539,84.498,11.83459963]
[1772820252369,4.3973317,84.53,84.499,0.61293362]
[1772820253469,11.83025943,84.529,84.501,0.61293362]
[1772820255457,11.83025943,84.529,84.503,0.61293362]
[1772820255770,4.3973317,84.52,84.503,0.61293362]
[1772820256560,11.82927137,84.537,84.503,0.61293362]
[1772820258655,4.3973317,84.55,84.505,0.61293362]
[1772820259053,4.3973317,84.54,84.505,0.61293362]
[1772820259269,4.3973317,84.55,84.505,0.61293362]
[1772820259874,11.82746099,84.549,84.507,0.61293362]
[1772820260665,4.3973317,84.56,84.509,0.61293362]
[1772820260867,45.77827281,84.58,84.515,0.61293362]
[1772820261065,45.77827281,84.58,84.521,0.61293362]
[1772820261870,45.77827281,84.58,84.522,41.4093372]
[1772820262063,45.77827281,84.58,84.523,0.61293362]
[1772820262377,45.77827281,84.58,84.525,0.61293362]
[1772820262571,45.77827281,84.58,84.526,0.14216157]
[1772820262778,11.82312603,84.58,84.531,0.61293362]
[1772820263274,16.22045773,84.58,84.531,0.61293362]
[1772820264075,16.22045773,84.58,84.532,41.40443854]
[1772820264262,11.82312603,84.58,84.533,0.61293362]
[1772820265279,16.22045773,84.58,84.533,0.61293362]
[1772820265467,4.3973317,84.57,84.533,0.61293362]
[1772820265662,4.3973317,84.56,84.533,0.61293362]
[1772820266372,11.82606227,84.559,84.533,0.61293362]
[1772820266675,4.3973317,84.54,84.518,0.61293362]
[1772820266855,4.3973317,84.53,84.503,0.61293362]
[1772820268162,11.83025943,84.529,84.504,11.83375934]
[1772820269276,11.83025943,84.529,84.498,11.83453232]
[1772820269574,11.83025943,84.529,84.487,0.61293362]
[1772820269575,4.3973317,84.51,84.487,0.61293362]
[1772820270579,11.8330592,84.509,84.479,0.61293362]
[1772820270879,4.3973317,84.5,84.462,0.61293362]
[1772820271090,4.3973317,84.49,84.461,11.83978404]
[1772820271377,41.4157072,84.509,84.462,0.61293362]
[1772820271573,4.3973317,84.5,84.462,0.61293362]
[1772820271958,4.3973317,84.49,84.462,0.61293362]
[1772820272155,11.83586028,84.489,84.462,0.61293362]
[1772820272379,11.83586028,84.489,84.46,12.03983307]
[1772820272584,11.83586028,84.489,84.46,12.65276669]
[1772820272786,11.83586028,84.489,84.461,0.61293362]
[1772820273779,4.3973317,84.48,84.46,0.2]
[1772820273959,4.3973317,84.47,84.46,0.2]
[1772820274562,11.8386627,84.469,84.45,0.2]
[1772820274762,4.3973317,84.46,84.45,0.2]
[1772820275283,4.3973317,84.46,84.431,0.61293362]
[1772820275784,41.43531946,84.469,84.431,0.61293362]
[1772820275785,4.3973317,84.45,84.431,0.61293362]
[1772820275972,4.3973317,84.46,84.431,0.61293362]
[1772820276280,4.3973317,84.46,84.362,47.414328]
[1772820276281,11.84286881,84.439,84.414,12.45919795]
[1772820276475,11.84286881,84.439,84.418,11.84574188]
[1772820276782,11.84286881,84.439,84.414,0.61293362]
[1772820276962,11.84286881,84.439,84.398,0.61293362]
[1772820276963,11.01934162,84.43,84.398,0.61293362]
[1772820277164,11.01934162,84.42,84.398,0.61293362]
[1772820277369,11.84286881,84.439,84.402,0.61293362]
[1772820277579,11.01934162,84.43,84.402,0.61293362]
[1772820277968,11.84286881,84.439,84.402,0.61293362]
[1772820278179,11.01934162,84.45,84.402,0.61293362]
[1772820278672,11.84146644,84.449,84.404,0.61293362]
[1772820279905,11.84072309,84.455,84.406,0.61293362]
[1772820280488,47.34495135,84.487,84.404,0.28432314]
[1772820280489,11.01934162,84.48,84.42,0.61293362]
[1772820280688,11.83726133,84.479,84.42,0.61293362]
[1772820280873,11.83726133,84.479,84.422,0.61293362]
[1772820281574,29.58768447,84.495,84.426,0.61293362]
[1772820281771,11.83445957,84.499,84.438,0.61293362]
[1772820281980,11.83445957,84.499,84.44,0.61293362]
[1772820282274,11.01934162,84.5,84.441,0.14216157]
[1772820282585,29.57974078,84.518,84.454,0.61293362]
[1772820282796,29.57974078,84.518,84.462,0.61293362]
[1772820282797,11.83193913,84.517,84.462,0.61293362]
[1772820283089,11.83193913,84.517,84.468,0.61293362]
[1772820283472,11.83193913,84.517,84.475,0.14216157]
[1772820283666,11.83193913,84.517,84.478,0.61293362]
[1772820283872,11.83165915,84.519,84.478,0.61293362]
[1772820284975,0.02024362,84.532,84.48,0.61293362]
[1772820285188,11.01934162,84.53,84.48,0.61293362]
[1772820285393,11.01934162,84.53,84.461,94.71752134]
[1772820285394,0.02145383,84.509,84.469,0.61293362]
[1772820285599,11.01934162,84.5,84.469,0.61293362]
[1772820285900,0.02145383,84.499,84.461,0.61293362]
[1772820286779,11.01934162,84.49,84.461,0.61293362]
[1772820287083,11.83459963,84.498,84.463,0.61293362]
[1772820287295,11.01934162,84.49,84.463,0.61293362]
[1772820288388,11.01934162,84.48,84.456,11.84048498]
[1772820288590,11.0091659,84.48,84.456,11.84048498]
[1772820288891,0.02321752,84.489,84.456,11.84048498]
[1772820289087,11.8590778,84.489,84.456,12.4534186]
[1772820290296,0.02435981,84.488,84.456,12.4534186]
[1772820290899,0.02435981,84.488,84.457,0.61293362]
[1772820291393,0.02492114,84.479,84.438,0.61293362]
[1772820291775,11.0091659,84.47,84.438,0.61293362]
[1772820292390,0.02492114,84.479,84.438,0.61293362]
[1772820292599,11.0091659,84.48,84.438,0.61293362]
[1772820293312,11.83586028,84.489,84.438,0.61293362]
[1772820293479,11.83586028,84.489,84.448,0.61293362]
[1772820295774,0.02763251,84.488,84.45,0.61293362]
[1772820296404,11.83586028,84.489,84.45,0.61293362]
[1772820298194,11.83586028,84.489,84.452,0.61293362]
[1772820299103,0.02969163,84.479,84.44,0.61293362]
[1772820299294,11.0091659,84.48,84.441,0.61293362]
[1772820299685,0.02969163,84.486,84.441,0.61293362]
[1772820299999,11.83586028,84.489,84.441,0.61293362]
[1772820300197,11.83459963,84.498,84.444,0.14216157]
[1772820300498,11.83459963,84.498,84.457,0.61293362]
[1772820300706,11.83459963,84.498,84.456,0.14216157]
[1772820300707,11.83394423,84.503,84.459,0.61293362]
[1772820300913,105.132572,84.718,84.467,0.61293362]